[Event "Titled Tuesday Blitz November 08 Early 2022"]
[White "Kopylov, Alexander A."]
[Black "Concio, Michael Jr."]
[WhiteFideId "4164857"]
[BlackFideId "5217873"]
[WhiteElo "2436"]
[BlackElo "2236"]
[Result "0-1"]
[Round "10"]
[TimeControl "180+1"]
[Date "2022.11.08"]
[WhiteClock "0:00:20"]
[BlackClock "0:00:05"]

1. d4 {[%clk 0:02:59]}  Nf6 {[%clk 0:02:59]} 2. Nf3 {[%clk 0:03:00]}  e6 {[%clk 0:03:00]} 3. g3 {[%clk 0:03:01]}  b6 {[%clk 0:03:00]} 4. Bg2 {[%clk 0:03:01]}  Bb7 {[%clk 0:03:01]} 5. O-O {[%clk 0:03:02]}  Be7 {[%clk 0:03:01]} 6. a4 {[%clk 0:03:02]}  a5 {[%clk 0:03:01]} 7. b3 {[%clk 0:02:59]}  O-O {[%clk 0:03:01]} 8. Bb2 {[%clk 0:03:00]}  d6 {[%clk 0:02:57]} 9. c4 {[%clk 0:02:55]}  Nbd7 {[%clk 0:02:50]} 10. d5 {[%clk 0:02:46]}  e5 {[%clk 0:02:42]} 11. Nc3 {[%clk 0:02:44]}  Kh8 {[%clk 0:02:38]} 12. e4 {[%clk 0:02:44]}  Nc5 {[%clk 0:02:35]} 13. Ne1 {[%clk 0:02:43]}  Nfd7 {[%clk 0:02:23]} 14. Ba3 {[%clk 0:02:40]}  f5 {[%clk 0:02:22]} 15. exf5 {[%clk 0:02:40]}  Rxf5 {[%clk 0:02:23]} 16. Nd3 {[%clk 0:02:40]}  Rf7 {[%clk 0:02:17]} 17. Bh3 {[%clk 0:02:33]}  Bc8 {[%clk 0:02:17]} 18. Nxc5 {[%clk 0:02:30]}  Nxc5 {[%clk 0:02:16]} 19. Bxc8 {[%clk 0:02:29]}  Qxc8 {[%clk 0:02:17]} 20. Bxc5 {[%clk 0:02:29]}  bxc5 {[%clk 0:02:18]} 21. Ne4 {[%clk 0:02:27]}  Qh3 {[%clk 0:02:15]} 22. f3 {[%clk 0:02:20]}  Raf8 {[%clk 0:02:05]} 23. Qe2 {[%clk 0:02:14]}  Qh5 {[%clk 0:02:02]} 24. Kg2 {[%clk 0:02:12]}  Bg5 {[%clk 0:02:01]} 25. Rad1 {[%clk 0:02:05]}  Bh6 {[%clk 0:01:58]} 26. Rd3 {[%clk 0:02:05]}  Qf5 {[%clk 0:01:23]} 27. Qe1 {[%clk 0:02:03]}  Ra8 {[%clk 0:01:24]} 28. Nf2 {[%clk 0:01:49]}  g6 {[%clk 0:01:17]} 29. Qe4 {[%clk 0:01:49]}  Bg7 {[%clk 0:01:12]} 30. Ng4 {[%clk 0:01:25]}  Raf8 {[%clk 0:01:00]} 31. Nf2 {[%clk 0:01:15]}  Bh6 {[%clk 0:00:53]} 32. h3 {[%clk 0:01:13]}  Rb8 {[%clk 0:00:37]} 33. Qg4 {[%clk 0:01:10]}  Bg7 {[%clk 0:00:18]} 34. Ne4 {[%clk 0:01:10]}  h5 {[%clk 0:00:18]} 35. Qxf5 {[%clk 0:01:10]}  gxf5 {[%clk 0:00:19]} 36. Ng5 {[%clk 0:01:10]}  Re7 {[%clk 0:00:20]} 37. Ne6 {[%clk 0:01:03]}  Bf6 {[%clk 0:00:19]} 38. g4 {[%clk 0:01:03]}  f4 {[%clk 0:00:19]} 39. g5 {[%clk 0:00:53]}  Rxe6 {[%clk 0:00:14]} 40. dxe6 {[%clk 0:00:53]}  Bxg5 {[%clk 0:00:14]} 41. Kf2 {[%clk 0:00:51]}  Kg7 {[%clk 0:00:11]} 42. Ke2 {[%clk 0:00:47]}  Kf6 {[%clk 0:00:11]} 43. Rc3 {[%clk 0:00:47]}  Bh4 {[%clk 0:00:11]} 44. Kd3 {[%clk 0:00:48]}  Kxe6 {[%clk 0:00:10]} 45. Rg1 {[%clk 0:00:47]}  Bg3 {[%clk 0:00:10]} 46. Kc2 {[%clk 0:00:46]}  c6 {[%clk 0:00:10]} 47. Rd3 {[%clk 0:00:47]}  Rd8 {[%clk 0:00:10]} 48. Rgd1 {[%clk 0:00:46]}  Bh4 {[%clk 0:00:08]} 49. Kc3 {[%clk 0:00:43]}  d5 {[%clk 0:00:08]} 50. cxd5+ {[%clk 0:00:41]}  cxd5 {[%clk 0:00:09]} 51. Kb2 {[%clk 0:00:40]}  d4 {[%clk 0:00:07]} 52. R3d2 {[%clk 0:00:40]}  Rg8 {[%clk 0:00:06]} 53. Rc2 {[%clk 0:00:39]}  Be7 {[%clk 0:00:05]} 54. b4 {[%clk 0:00:35]}  axb4 {[%clk 0:00:05]} 55. a5 {[%clk 0:00:34]}  Kd5 {[%clk 0:00:06]} 56. a6 {[%clk 0:00:34]}  c4 {[%clk 0:00:05]} 57. Ra1 {[%clk 0:00:33]}  Ra8 {[%clk 0:00:06]} 58. Ra5+ {[%clk 0:00:33]}  Bc5 {[%clk 0:00:07]} 59. Rg2 {[%clk 0:00:32]}  d3 {[%clk 0:00:05]} 60. Rg7 {[%clk 0:00:31]}  c3+ {[%clk 0:00:05]} 61. Kb3 {[%clk 0:00:31]}  c2 {[%clk 0:00:05]} 62. Kb2 {[%clk 0:00:32]}  Kc6 {[%clk 0:00:04]} 63. Rg6+ {[%clk 0:00:31]}  Kd5 {[%clk 0:00:05]} 64. Rg7 {[%clk 0:00:31]}  b3 {[%clk 0:00:02]} 65. Rd7+ {[%clk 0:00:30]}  Kc6 {[%clk 0:00:03]} 66. Rxd3 {[%clk 0:00:30]}  Be3 {[%clk 0:00:04]} 67. Rc3+ {[%clk 0:00:29]}  Kb6 {[%clk 0:00:04]} 68. Rxe5 {[%clk 0:00:26]}  Bd4 {[%clk 0:00:04]} 69. Re6+ {[%clk 0:00:26]}  Kb5 {[%clk 0:00:05]} 70. Kxb3 {[%clk 0:00:26]}  Bxc3 {[%clk 0:00:04]} 71. Kxc2 {[%clk 0:00:27]}  Bd4 {[%clk 0:00:04]} 72. Kd3 {[%clk 0:00:27]}  Be3 {[%clk 0:00:04]} 73. Re5+ {[%clk 0:00:27]}  Kxa6 {[%clk 0:00:04]} 74. Rxh5 {[%clk 0:00:28]}  Rg8 {[%clk 0:00:05]} 75. Ke4 {[%clk 0:00:28]}  Kb6 {[%clk 0:00:05]} 76. Rd5 {[%clk 0:00:28]}  Rh8 {[%clk 0:00:05]} 77. Rd6+ {[%clk 0:00:27]}  Kc5 {[%clk 0:00:05]} 78. Rd5+ {[%clk 0:00:27]}  Kc4 {[%clk 0:00:05]} 79. Rd7 {[%clk 0:00:27]}  Rxh3 {[%clk 0:00:06]} 80. Rc7+ {[%clk 0:00:27]}  Kb3 {[%clk 0:00:06]} 81. Kd3 {[%clk 0:00:27]}  Rxf3 {[%clk 0:00:06]} 82. Rb7+ {[%clk 0:00:28]}  Ka4 {[%clk 0:00:06]} 83. Kc4 {[%clk 0:00:28]}  Rf1 {[%clk 0:00:06]} 84. Rb8 {[%clk 0:00:26]}  Rc1+ {[%clk 0:00:07]} 85. Kd3 {[%clk 0:00:27]}  Ka5 {[%clk 0:00:07]} 86. Ke4 {[%clk 0:00:27]}  Rc4+ {[%clk 0:00:05]} 87. Kd3 {[%clk 0:00:26]}  Rd4+ {[%clk 0:00:04]} 88. Ke2 {[%clk 0:00:26]}  Rd7 {[%clk 0:00:05]} 89. Kf3 {[%clk 0:00:26]}  Ka6 {[%clk 0:00:06]} 90. Ke4 {[%clk 0:00:26]}  Rb7 {[%clk 0:00:06]} 91. Rc8 {[%clk 0:00:27]}  Kb6 {[%clk 0:00:06]} 92. Rc2 {[%clk 0:00:27]}  Re7+ {[%clk 0:00:06]} 93. Kf3 {[%clk 0:00:27]}  Re5 {[%clk 0:00:07]} 94. Kg4 {[%clk 0:00:26]}  Rc5 {[%clk 0:00:07]} 95. Rb2+ {[%clk 0:00:27]}  Kc6 {[%clk 0:00:08]} 96. Kf3 {[%clk 0:00:27]}  Kd6 {[%clk 0:00:08]} 97. Ke4 {[%clk 0:00:26]}  Re5+ {[%clk 0:00:08]} 98. Kf3 {[%clk 0:00:26]}  Rg5 {[%clk 0:00:08]} 99. Ra2 {[%clk 0:00:25]}  Ke6 {[%clk 0:00:07]} 100. Ra6+ {[%clk 0:00:25]}  Kf5 {[%clk 0:00:07]} 101. Ra5+ {[%clk 0:00:26]}  Kg6 {[%clk 0:00:07]} 102. Ra8 {[%clk 0:00:26]}  Re5 {[%clk 0:00:04]} 103. Rg8+ {[%clk 0:00:25]}  Kf7 {[%clk 0:00:04]} 104. Ra8 {[%clk 0:00:25]}  Re7 {[%clk 0:00:04]} 105. Ra6 {[%clk 0:00:24]}  Re6 {[%clk 0:00:03]} 106. Ra8 {[%clk 0:00:25]}  Rf6 {[%clk 0:00:04]} 107. Rb8 {[%clk 0:00:24]}  Bc5 {[%clk 0:00:04]} 108. Rc8 {[%clk 0:00:23]}  Bd6 {[%clk 0:00:04]} 109. Ra8 {[%clk 0:00:23]}  Ke6 {[%clk 0:00:05]} 110. Ra5 {[%clk 0:00:23]}  Rg6 {[%clk 0:00:05]} 111. Ra8 {[%clk 0:00:21]}  Rg3+ {[%clk 0:00:06]} 112. Kf2 {[%clk 0:00:22]}  Be5 {[%clk 0:00:05]} 113. Re8+ {[%clk 0:00:20]}  Kf5 {[%clk 0:00:06]} 114. Rf8+ {[%clk 0:00:20]}  Ke4 {[%clk 0:00:06]} 115. Re8 {[%clk 0:00:20]}  Rc3 {[%clk 0:00:05]} 116. Re7 {[%clk 0:00:20]}  Rc2+ {[%clk 0:00:05]} 117. Ke1 {[%clk 0:00:21]}  f3 {[%clk 0:00:06]} 118. Kd1 {[%clk 0:00:21]}  Rh2 {[%clk 0:00:06]} 119. Ke1 {[%clk 0:00:21]}  Kd4 {[%clk 0:00:05]} 120. Kf1 {[%clk 0:00:21]}  Bg3 {[%clk 0:00:05]} 121. Rd7+ {[%clk 0:00:20]}  Kc5 {[%clk 0:00:05]} 0-1


[Site "https://www.chess.com"]

[Event "Titled Tuesday Blitz November 08 Early 2022"]
[White "Koridze, Lile"]
[Black "Adewumi, Tanitoluwa"]
[WhiteFideId "13612514"]
[BlackFideId "30966396"]
[WhiteElo "2050"]
[BlackElo "2539"]
[Result "0-1"]
[Round "10"]
[TimeControl "180+1"]
[Date "2022.11.09"]
[WhiteClock "0:00:19"]
[BlackClock "0:00:52"]

1. d4 {[%clk 0:03:00]}  Nf6 {[%clk 0:02:58]} 2. c4 {[%clk 0:03:01]}  e6 {[%clk 0:02:47]} 3. Nf3 {[%clk 0:03:00]}  b6 {[%clk 0:02:42]} 4. g3 {[%clk 0:03:00]}  Ba6 {[%clk 0:02:40]} 5. b3 {[%clk 0:02:58]}  Bb4+ {[%clk 0:02:38]} 6. Bd2 {[%clk 0:02:58]}  Be7 {[%clk 0:02:38]} 7. Nc3 {[%clk 0:02:56]}  c6 {[%clk 0:02:36]} 8. Bg2 {[%clk 0:02:55]}  d5 {[%clk 0:02:36]} 9. Ne5 {[%clk 0:02:47]}  Nfd7 {[%clk 0:02:31]} 10. Nxd7 {[%clk 0:01:19]}  Nxd7 {[%clk 0:02:29]} 11. cxd5 {[%clk 0:01:18]}  cxd5 {[%clk 0:02:25]} 12. O-O {[%clk 0:01:18]}  O-O {[%clk 0:02:22]} 13. Re1 {[%clk 0:01:16]}  Rc8 {[%clk 0:02:21]} 14. e4 {[%clk 0:01:15]}  Bb4 {[%clk 0:02:09]} 15. Qf3 {[%clk 0:01:08]}  Bxc3 {[%clk 0:02:01]} 16. Bxc3 {[%clk 0:01:08]}  dxe4 {[%clk 0:02:02]} 17. Qe3 {[%clk 0:01:09]}  Nf6 {[%clk 0:02:00]} 18. Bb2 {[%clk 0:01:09]}  Bb7 {[%clk 0:01:40]} 19. Qg5 {[%clk 0:01:03]}  h6 {[%clk 0:01:27]} 20. Qh4 {[%clk 0:00:42]}  Rc2 {[%clk 0:01:22]} 21. Ba3 {[%clk 0:00:37]}  Qxd4 {[%clk 0:01:17]} 22. Qf4 {[%clk 0:00:33]}  Rd8 {[%clk 0:00:57]} 23. Bf1 {[%clk 0:00:25]}  Nd5 {[%clk 0:00:52]} 24. Qxe4 {[%clk 0:00:19]}  Qxf2+ {[%clk 0:00:51]} 25. Kh1 {[%clk 0:00:19]}  Qxh2# {[%clk 0:00:52]} 0-1


[Site "https://www.chess.com"]

[Event "Titled Tuesday Blitz November 08 Early 2022"]
[White "Kuznetsova, Olga"]
[Black "Shuvalova, Polina"]
[WhiteFideId "4191323"]
[BlackFideId "24171760"]
[WhiteElo "2134"]
[BlackElo "2342"]
[Result "1/2-1/2"]
[Round "10"]
[TimeControl "180+1"]
[Date "2022.11.09"]
[WhiteClock "0:00:21"]
[BlackClock "0:00:02"]

1. d4 {[%clk 0:03:00]}  Nf6 {[%clk 0:02:58]} 2. g3 {[%clk 0:02:58]}  d5 {[%clk 0:02:58]} 3. Bg2 {[%clk 0:02:52]}  e6 {[%clk 0:02:58]} 4. Nf3 {[%clk 0:02:52]}  Be7 {[%clk 0:02:58]} 5. O-O {[%clk 0:02:51]}  O-O {[%clk 0:02:58]} 6. Nbd2 {[%clk 0:02:47]}  b5 {[%clk 0:02:54]} 7. a4 {[%clk 0:02:46]}  b4 {[%clk 0:02:53]} 8. c4 {[%clk 0:02:45]}  bxc3 {[%clk 0:02:52]} 9. bxc3 {[%clk 0:02:44]}  Nbd7 {[%clk 0:02:53]} 10. Re1 {[%clk 0:02:43]}  Bb7 {[%clk 0:02:51]} 11. Rb1 {[%clk 0:02:39]}  Qc8 {[%clk 0:02:50]} 12. Ne5 {[%clk 0:02:25]}  Nxe5 {[%clk 0:02:46]} 13. dxe5 {[%clk 0:02:25]}  Nd7 {[%clk 0:02:47]} 14. f4 {[%clk 0:02:23]}  Rb8 {[%clk 0:02:44]} 15. Nf3 {[%clk 0:02:09]}  c5 {[%clk 0:02:41]} 16. Qc2 {[%clk 0:02:05]}  Bc6 {[%clk 0:02:36]} 17. Be3 {[%clk 0:02:01]}  Qa6 {[%clk 0:02:32]} 18. Rxb8 {[%clk 0:01:55]}  Rxb8 {[%clk 0:02:31]} 19. Ra1 {[%clk 0:01:55]}  h6 {[%clk 0:02:30]} 20. Nd2 {[%clk 0:01:51]}  Qxe2 {[%clk 0:02:24]} 21. Bf2 {[%clk 0:01:43]}  c4 {[%clk 0:02:06]} 22. Bf1 {[%clk 0:01:31]}  Qh5 {[%clk 0:02:06]} 23. Bg2 {[%clk 0:01:31]}  Rc8 {[%clk 0:01:45]} 24. Rb1 {[%clk 0:01:28]}  Nc5 {[%clk 0:01:34]} 25. Nxc4 {[%clk 0:01:16]}  dxc4 {[%clk 0:01:27]} 26. Bxc6 {[%clk 0:01:16]}  Rxc6 {[%clk 0:01:28]} 27. Rb8+ {[%clk 0:01:15]}  Bf8 {[%clk 0:01:28]} 28. Qd2 {[%clk 0:00:59]}  f5 {[%clk 0:00:52]} 29. Bxc5 {[%clk 0:00:40]}  Rxc5 {[%clk 0:00:51]} 30. Qd6 {[%clk 0:00:40]}  Kh7 {[%clk 0:00:45]} 31. Qxf8 {[%clk 0:00:38]}  Qd1+ {[%clk 0:00:43]} 32. Kg2 {[%clk 0:00:38]}  Qe2+ {[%clk 0:00:41]} 33. Kh3 {[%clk 0:00:38]}  Qh5+ {[%clk 0:00:23]} 34. Kg2 {[%clk 0:00:37]}  Qe2+ {[%clk 0:00:19]} 35. Kh3 {[%clk 0:00:38]}  Qg4+ {[%clk 0:00:09]} 36. Kg2 {[%clk 0:00:38]}  Rc7 {[%clk 0:00:02]} 37. Qg8+ {[%clk 0:00:34]}  Kg6 {[%clk 0:00:03]} 38. Qe8+ {[%clk 0:00:30]}  Kh7 {[%clk 0:00:01]} 39. Qg8+ {[%clk 0:00:30]}  Kg6 {[%clk 0:00:02]} 40. Qe8+ {[%clk 0:00:21]}  Kh7 {[%clk 0:00:02]} 41. Qg8+ {[%clk 0:00:21]} 1/2-1/2


[Site "https://www.chess.com"]

[Event "Titled Tuesday Blitz November 08 Early 2022"]
[White "Lewtak, Damian"]
[Black "Yuan, Qingyu"]
[WhiteFideId "1141724"]
[BlackFideId "8609772"]
[WhiteElo "2329"]
[BlackElo "2359"]
[Result "0-1"]
[Round "10"]
[TimeControl "180+1"]
[Date "2022.11.09"]
[WhiteClock "0:00:34"]
[BlackClock "0:00:25"]

1. e4 {[%clk 0:03:00]}  c6 {[%clk 0:03:00]} 2. Nf3 {[%clk 0:03:01]}  d5 {[%clk 0:03:00]} 3. d3 {[%clk 0:03:01]}  dxe4 {[%clk 0:03:01]} 4. dxe4 {[%clk 0:03:02]}  Qxd1+ {[%clk 0:03:02]} 5. Kxd1 {[%clk 0:03:02]}  Nf6 {[%clk 0:03:02]} 6. Bd3 {[%clk 0:03:01]}  Bg4 {[%clk 0:02:57]} 7. Ke2 {[%clk 0:03:00]}  Nbd7 {[%clk 0:02:57]} 8. Be3 {[%clk 0:03:00]}  Ne5 {[%clk 0:02:50]} 9. h3 {[%clk 0:02:59]}  Bxf3+ {[%clk 0:02:49]} 10. gxf3 {[%clk 0:02:59]}  e6 {[%clk 0:02:39]} 11. Nd2 {[%clk 0:02:57]}  Ned7 {[%clk 0:02:32]} 12. c3 {[%clk 0:02:54]}  Bd6 {[%clk 0:02:31]} 13. a4 {[%clk 0:02:51]}  Nh5 {[%clk 0:02:23]} 14. Nc4 {[%clk 0:02:49]}  Bc7 {[%clk 0:02:21]} 15. b4 {[%clk 0:02:47]}  Ne5 {[%clk 0:02:17]} 16. Nxe5 {[%clk 0:02:41]}  Bxe5 {[%clk 0:02:17]} 17. Bd4 {[%clk 0:02:40]}  f6 {[%clk 0:02:08]} 18. Bxe5 {[%clk 0:02:30]}  fxe5 {[%clk 0:02:08]} 19. Ke3 {[%clk 0:02:31]}  O-O-O {[%clk 0:01:42]} 20. Bc4 {[%clk 0:02:26]}  Nf4 {[%clk 0:01:39]} 21. h4 {[%clk 0:02:23]}  Rd7 {[%clk 0:01:32]} 22. Rad1 {[%clk 0:02:14]}  Rhd8 {[%clk 0:01:30]} 23. Rxd7 {[%clk 0:02:14]}  Rxd7 {[%clk 0:01:31]} 24. h5 {[%clk 0:02:11]}  h6 {[%clk 0:01:26]} 25. a5 {[%clk 0:02:07]}  Kd8 {[%clk 0:01:26]} 26. b5 {[%clk 0:02:02]}  cxb5 {[%clk 0:01:19]} 27. Bxb5 {[%clk 0:02:03]}  Rd6 {[%clk 0:01:20]} 28. Rb1 {[%clk 0:01:36]}  Nxh5 {[%clk 0:01:07]} 29. Bf1 {[%clk 0:01:33]}  Kc7 {[%clk 0:01:06]} 30. c4 {[%clk 0:01:34]}  Nf4 {[%clk 0:01:01]} 31. Be2 {[%clk 0:01:29]}  Rc6 {[%clk 0:00:55]} 32. Rb5 {[%clk 0:01:25]}  Ng6 {[%clk 0:00:55]} 33. Rb1 {[%clk 0:01:14]}  Nf4 {[%clk 0:00:40]} 34. Rb5 {[%clk 0:01:13]}  Rd6 {[%clk 0:00:41]} 35. Bf1 {[%clk 0:01:01]}  Ng6 {[%clk 0:00:40]} 36. Be2 {[%clk 0:00:59]}  Nf4 {[%clk 0:00:37]} 37. Bf1 {[%clk 0:00:59]}  Rd1 {[%clk 0:00:38]} 38. Rxe5 {[%clk 0:00:55]}  g5 {[%clk 0:00:37]} 39. Rc5+ {[%clk 0:00:42]}  Kb8 {[%clk 0:00:31]} 40. a6 {[%clk 0:00:33]}  Rxf1 {[%clk 0:00:27]} 41. Kd4 {[%clk 0:00:33]}  Rd1+ {[%clk 0:00:26]} 42. Kc3 {[%clk 0:00:34]}  bxa6 {[%clk 0:00:25]} 0-1


[Site "https://www.chess.com"]

[Event "Titled Tuesday Blitz November 08 Early 2022"]
[White "Luberanski, Jakub"]
[Black "Fernandez De La Vara, Arnaldo"]
[WhiteFideId "21830509"]
[BlackFideId "3518388"]
[WhiteElo "2109"]
[BlackElo "2387"]
[Result "0-1"]
[Round "10"]
[TimeControl "180+1"]
[Date "2022.11.09"]
[WhiteClock "0:00:38"]
[BlackClock "0:00:20"]

1. d4 {[%clk 0:02:55]}  c5 {[%clk 0:02:44]} 2. d5 {[%clk 0:02:52]}  Nf6 {[%clk 0:02:45]} 3. Nc3 {[%clk 0:02:52]}  a6 {[%clk 0:02:45]} 4. a4 {[%clk 0:02:52]}  d6 {[%clk 0:02:46]} 5. e4 {[%clk 0:02:52]}  g6 {[%clk 0:02:47]} 6. Nf3 {[%clk 0:02:52]}  Bg4 {[%clk 0:02:46]} 7. Be2 {[%clk 0:02:53]}  Bxf3 {[%clk 0:02:46]} 8. Bxf3 {[%clk 0:02:54]}  Bg7 {[%clk 0:02:47]} 9. O-O {[%clk 0:02:54]}  O-O {[%clk 0:02:46]} 10. Bf4 {[%clk 0:02:37]}  Nbd7 {[%clk 0:02:46]} 11. Re1 {[%clk 0:02:36]}  Ne8 {[%clk 0:02:46]} 12. Qd2 {[%clk 0:02:35]}  Nc7 {[%clk 0:02:47]} 13. h3 {[%clk 0:02:32]}  b5 {[%clk 0:02:46]} 14. axb5 {[%clk 0:02:31]}  axb5 {[%clk 0:02:47]} 15. Rxa8 {[%clk 0:02:31]}  Qxa8 {[%clk 0:02:48]} 16. Bg5 {[%clk 0:02:31]}  Re8 {[%clk 0:02:43]} 17. Be2 {[%clk 0:02:28]}  Qa6 {[%clk 0:01:48]} 18. f4 {[%clk 0:01:50]}  Nb6 {[%clk 0:01:10]} 19. Bd3 {[%clk 0:01:27]}  Na4 {[%clk 0:00:49]} 20. Nxa4 {[%clk 0:01:24]}  Qxa4 {[%clk 0:00:50]} 21. b3 {[%clk 0:01:19]}  Qd4+ {[%clk 0:00:47]} 22. Kh1 {[%clk 0:01:20]}  c4 {[%clk 0:00:46]} 23. bxc4 {[%clk 0:01:17]}  bxc4 {[%clk 0:00:47]} 24. Qa5 {[%clk 0:01:11]}  cxd3 {[%clk 0:00:38]} 25. Qxc7 {[%clk 0:01:11]}  Qf2 {[%clk 0:00:35]} 26. Rd1 {[%clk 0:00:54]}  Qxc2 {[%clk 0:00:33]} 27. Qxc2 {[%clk 0:00:43]}  dxc2 {[%clk 0:00:34]} 28. Rc1 {[%clk 0:00:42]}  Rc8 {[%clk 0:00:34]} 29. e5 {[%clk 0:00:43]}  f6 {[%clk 0:00:22]} 30. exf6 {[%clk 0:00:42]}  exf6 {[%clk 0:00:20]} 31. Bh4 {[%clk 0:00:38]}  f5 {[%clk 0:00:20]} 0-1


[Site "https://www.chess.com"]

[Event "Titled Tuesday Blitz November 08 Early 2022"]
[White "Madaminov, Mukhiddin"]
[Black "Xiong, Jeffery"]
[WhiteFideId "14210703"]
[BlackFideId "2047640"]
[WhiteElo "2341"]
[BlackElo "2725"]
[Result "1-0"]
[Round "10"]
[TimeControl "180+1"]
[Date "2022.11.08"]
[WhiteClock "0:00:02"]
[BlackClock "0:00:03"]

1. d4 {[%clk 0:03:00]}  e6 {[%clk 0:02:57]} 2. Nc3 {[%clk 0:03:00]}  Bb4 {[%clk 0:02:52]} 3. Bf4 {[%clk 0:02:58]}  Nf6 {[%clk 0:02:51]} 4. e3 {[%clk 0:02:58]}  Nd5 {[%clk 0:02:40]} 5. Ne2 {[%clk 0:02:56]}  Nxf4 {[%clk 0:02:28]} 6. Nxf4 {[%clk 0:02:47]}  Bxc3+ {[%clk 0:02:28]} 7. bxc3 {[%clk 0:02:47]}  O-O {[%clk 0:02:29]} 8. Bd3 {[%clk 0:02:41]}  d6 {[%clk 0:02:30]} 9. Qh5 {[%clk 0:02:39]}  h6 {[%clk 0:02:29]} 10. O-O {[%clk 0:02:32]}  Nd7 {[%clk 0:02:29]} 11. Qf3 {[%clk 0:02:27]}  e5 {[%clk 0:02:26]} 12. Ne2 {[%clk 0:02:13]}  Nf6 {[%clk 0:02:17]} 13. Ng3 {[%clk 0:02:12]}  c6 {[%clk 0:02:18]} 14. Nh5 {[%clk 0:02:07]}  Nxh5 {[%clk 0:02:08]} 15. Qxh5 {[%clk 0:02:06]}  Qe7 {[%clk 0:02:07]} 16. Rfb1 {[%clk 0:02:03]}  f5 {[%clk 0:01:54]} 17. Qd1 {[%clk 0:01:42]}  Be6 {[%clk 0:01:53]} 18. f4 {[%clk 0:01:38]}  exf4 {[%clk 0:01:49]} 19. exf4 {[%clk 0:01:38]}  b5 {[%clk 0:01:26]} 20. a4 {[%clk 0:01:37]}  a6 {[%clk 0:01:27]} 21. Qe2 {[%clk 0:01:33]}  Qf7 {[%clk 0:01:24]} 22. Re1 {[%clk 0:01:26]}  Bd5 {[%clk 0:01:22]} 23. Qf2 {[%clk 0:00:53]}  Rfe8 {[%clk 0:00:56]} 24. Re3 {[%clk 0:00:51]}  Rxe3 {[%clk 0:00:55]} 25. Qxe3 {[%clk 0:00:51]}  Re8 {[%clk 0:00:56]} 26. Qf2 {[%clk 0:00:52]}  Be4 {[%clk 0:00:44]} 27. axb5 {[%clk 0:00:51]}  axb5 {[%clk 0:00:45]} 28. Bf1 {[%clk 0:00:44]}  Kh7 {[%clk 0:00:41]} 29. h3 {[%clk 0:00:44]}  Re6 {[%clk 0:00:41]} 30. Kh2 {[%clk 0:00:44]}  Rg6 {[%clk 0:00:40]} 31. g3 {[%clk 0:00:33]}  Qd5 {[%clk 0:00:39]} 32. Ra5 {[%clk 0:00:30]}  Qf7 {[%clk 0:00:37]} 33. Ra8 {[%clk 0:00:28]}  Re6 {[%clk 0:00:32]} 34. c4 {[%clk 0:00:29]}  Qb7 {[%clk 0:00:29]} 35. Ra1 {[%clk 0:00:25]}  bxc4 {[%clk 0:00:29]} 36. Bxc4 {[%clk 0:00:24]}  Re8 {[%clk 0:00:30]} 37. Bd3 {[%clk 0:00:17]}  Qb2 {[%clk 0:00:25]} 38. Re1 {[%clk 0:00:18]}  d5 {[%clk 0:00:26]} 39. g4 {[%clk 0:00:18]}  Rf8 {[%clk 0:00:25]} 40. Bxe4 {[%clk 0:00:14]}  fxe4 {[%clk 0:00:26]} 41. f5 {[%clk 0:00:15]}  Qc3 {[%clk 0:00:22]} 42. Re2 {[%clk 0:00:13]}  Qa3 {[%clk 0:00:13]} 43. Kg2 {[%clk 0:00:13]}  Qd6 {[%clk 0:00:13]} 44. c4 {[%clk 0:00:12]}  Re8 {[%clk 0:00:11]} 45. c5 {[%clk 0:00:11]}  Qf6 {[%clk 0:00:12]} 46. Qe3 {[%clk 0:00:10]}  Rb8 {[%clk 0:00:11]} 47. Rd2 {[%clk 0:00:07]}  Rb1 {[%clk 0:00:11]} 48. Qf4 {[%clk 0:00:07]}  Qh4 {[%clk 0:00:11]} 49. Rf2 {[%clk 0:00:04]}  Rb3 {[%clk 0:00:10]} 50. Qh2 {[%clk 0:00:02]}  Rd3 {[%clk 0:00:04]} 51. f6 {[%clk 0:00:03]}  Qxf2+ {[%clk 0:00:04]} 52. Kxf2 {[%clk 0:00:02]}  Rd2+ {[%clk 0:00:05]} 53. Kg3 {[%clk 0:00:02]}  Rxh2 {[%clk 0:00:05]} 54. f7 {[%clk 0:00:03]}  Rd2 {[%clk 0:00:02]} 55. f8=Q {[%clk 0:00:03]}  Rd3+ {[%clk 0:00:03]} 56. Kg2 {[%clk 0:00:02]} 1-0


[Site "https://www.chess.com"]

[Event "Titled Tuesday Blitz November 08 Early 2022"]
[White "Matlakov, Maxim"]
[Black "Artemiev, Vladislav"]
[WhiteFideId "4168003"]
[BlackFideId "24101605"]
[WhiteElo "2669"]
[BlackElo "2802"]
[Result "1-0"]
[Round "10"]
[TimeControl "180+1"]
[Date "2022.11.08"]
[WhiteClock "0:00:39"]
[BlackClock "0:00:03"]

1. Nf3 {[%clk 0:03:00]}  b6 {[%clk 0:02:58]} 2. e4 {[%clk 0:02:56]}  Bb7 {[%clk 0:02:58]} 3. Nc3 {[%clk 0:02:56]}  e6 {[%clk 0:02:58]} 4. d4 {[%clk 0:02:55]}  Bb4 {[%clk 0:02:57]} 5. Bd3 {[%clk 0:02:53]}  Nf6 {[%clk 0:02:57]} 6. Nd2 {[%clk 0:02:53]}  d5 {[%clk 0:02:37]} 7. e5 {[%clk 0:02:49]}  Nfd7 {[%clk 0:02:31]} 8. O-O {[%clk 0:02:48]}  Be7 {[%clk 0:02:26]} 9. Qg4 {[%clk 0:02:44]}  g6 {[%clk 0:02:26]} 10. Nf3 {[%clk 0:02:43]}  Ba6 {[%clk 0:02:04]} 11. Bxa6 {[%clk 0:02:35]}  Nxa6 {[%clk 0:02:05]} 12. Bh6 {[%clk 0:02:34]}  c6 {[%clk 0:01:37]} 13. Ne2 {[%clk 0:02:33]}  Bf8 {[%clk 0:01:24]} 14. Qf4 {[%clk 0:02:20]}  Bxh6 {[%clk 0:01:20]} 15. Qxh6 {[%clk 0:02:21]}  Qe7 {[%clk 0:01:21]} 16. Rac1 {[%clk 0:02:18]}  O-O-O {[%clk 0:01:16]} 17. c4 {[%clk 0:01:45]}  dxc4 {[%clk 0:01:08]} 18. Rxc4 {[%clk 0:01:45]}  Kb7 {[%clk 0:01:08]} 19. Rfc1 {[%clk 0:01:42]}  Ndb8 {[%clk 0:01:02]} 20. a3 {[%clk 0:01:23]}  Nc7 {[%clk 0:00:56]} 21. h4 {[%clk 0:01:23]}  Nd5 {[%clk 0:00:53]} 22. Ng3 {[%clk 0:01:13]}  f5 {[%clk 0:00:51]} 23. exf6 {[%clk 0:01:12]}  Nxf6 {[%clk 0:00:50]} 24. Ne5 {[%clk 0:01:08]}  Rc8 {[%clk 0:00:35]} 25. b4 {[%clk 0:01:06]}  Rhd8 {[%clk 0:00:34]} 26. Qg5 {[%clk 0:01:04]}  Nd5 {[%clk 0:00:30]} 27. Qg4 {[%clk 0:00:59]}  Rf8 {[%clk 0:00:23]} 28. Ne2 {[%clk 0:00:54]}  Qd6 {[%clk 0:00:20]} 29. g3 {[%clk 0:00:48]}  Nd7 {[%clk 0:00:20]} 30. Qe4 {[%clk 0:00:42]}  Nxe5 {[%clk 0:00:13]} 31. dxe5 {[%clk 0:00:43]}  Qd7 {[%clk 0:00:13]} 32. Nd4 {[%clk 0:00:43]}  Qf7 {[%clk 0:00:03]} 33. f4 {[%clk 0:00:39]} 1-0


[Site "https://www.chess.com"]